fUST/lending_fUST_20251220
["ID","MTS","AMOUNT","RATE_DAILY","PERIOD"]
[399233384,1766192965754,242.0,0.00013562,2]
[399233385,1766192981310,300.0,0.00013644,2]
[399233386,1766193008818,1348.93,0.000136,2]
[399233400,1766193031995,-372.51999591,0.00013699,2]
[399233401,1766193032004,-500.0,0.00013699,2]
[399233402,1766193032014,-129.79569134,0.00013699,2]
[399233450,1766193038072,-216.20697765,0.00013699,2]
[399233452,1766193038082,-500.0,0.00013699,2]
[399233454,1766193038091,-486.24431256,0.00013699,2]
[399233456,1766193038102,-500.0,0.00013699,2]
[399233458,1766193038116,-500.0,0.00013699,2]
[399233460,1766193038126,-500.0,0.00013699,2]
[399233462,1766193038135,-500.0,0.00013699,2]
[399233464,1766193038145,-500.0,0.00013699,2]
[399233466,1766193038157,-500.0,0.00013699,2]
[399233468,1766193038167,-449.47080907,0.00013699,2]
[399233469,1766193038176,-137.6612001,0.00013699,2]
[399233472,1766193038188,-469.65829491,0.00013699,2]
[399233474,1766193038197,-500.0,0.00013699,2]
[399233476,1766193038206,-500.0,0.00013699,2]
[399233478,1766193038216,-242.23454082,0.00013699,2]
[399233480,1766193038226,-478.51608341,0.00013699,2]
[399233482,1766193038235,-500.0,0.00013699,2]
[399233484,1766193038244,-500.0,0.00013699,2]
[399233486,1766193038254,-312.8507098,0.00013699,2]
[399233487,1766193038264,-308.28627724,0.00013699,2]
[399233490,1766193038273,-500.0,0.00013699,2]
[399233491,1766193038283,-500.0,0.00013699,2]
[399233494,1766193038292,-487.25017441,0.00013699,2]
[399233496,1766193038302,-500.0,0.00013699,2]
[399233497,1766193038311,-500.0,0.00013699,2]
[399233499,1766193038321,-500.0,0.00013699,2]
[399233501,1766193038331,-222.94890207,0.00013699,2]
[399233503,1766193038340,-235.02863471,0.00013699,2]
[399233506,1766193038351,-379.97136529,0.00013699,2]
[399233508,1766193038360,-1000.0,0.00013821,2]
[399233510,1766193038369,-300.0,0.00013972,2]
[399233512,1766193038377,-300.0,0.00013972,2]
[399233514,1766193038387,-300.0,0.00013972,2]
[399233516,1766193038396,-300.0,0.00013972,2]
[399233518,1766193038405,-300.0,0.00013972,2]
[399233520,1766193038413,-300.0,0.00013972,2]
[399233521,1766193038422,-300.0,0.00013972,2]
[399233523,1766193038431,-300.0,0.00013972,2]
[399233525,1766193038440,-300.0,0.00013972,2]
[399233527,1766193038449,-300.0,0.00013972,2]
[399233529,1766193038458,-300.0,0.00013972,2]
[399233531,1766193038467,-300.0,0.00013972,2]
[399233533,1766193038476,-300.0,0.00013972,2]
[399233535,1766193038485,-300.0,0.00013972,2]
[399233537,1766193038493,-300.0,0.00013972,2]
[399233549,1766193038588,-500.0,0.00014141,2]
[399233551,1766193038598,-500.0,0.00014141,2]
[399233553,1766193038607,-500.6437086,0.00014141,2]
[399233555,1766193038617,-500.0,0.00014141,2]
[399233557,1766193038625,-500.0,0.00014141,2]
[399233559,1766193038634,-1571.8359575,0.00014141,2]
[399233561,1766193038643,-559.0034858,0.00014246,2]
[399233563,1766193038652,-322.013094,0.00014247,2]
[399233565,1766193038661,-1000.0,0.00014247,2]
[399233567,1766193038671,-1000.0,0.00014247,2]
[399233569,1766193038679,-392.33113714,0.00014247,2]
[399233571,1766193038688,-500.0,0.00014247,2]
[399233573,1766193038697,-1000.0,0.00014247,2]
[399233575,1766193038706,-1000.0,0.00014247,2]
[399233577,1766193038715,-1000.0,0.00014247,2]
[399233579,1766193038724,-600.0,0.0001425,2]
[399233581,1766193038733,-337.86704809,0.00014368,2]
[399233583,1766193038741,-500.0,0.00014694,2]
[399233585,1766193038750,-452.27000154,0.00014694,2]
[399233587,1766193038760,-500.0,0.00014694,2]
[399233589,1766193038769,-500.0,0.00014694,2]
[399233591,1766193038778,-500.0,0.00014694,2]
[399233593,1766193038786,-500.0,0.00014694,2]
[399233595,1766193038795,-500.0,0.00014694,2]
[399233597,1766193038805,-152.16261109,0.00014694,2]
[399233599,1766193038814,-500.0,0.00014694,2]
[399233601,1766193038823,-500.0,0.00014694,2]
[399233603,1766193038832,-500.0,0.00014694,2]
[399233605,1766193038843,-500.0,0.00014694,2]
[399233607,1766193038852,-500.0,0.00014694,2]
[399233609,1766193038861,-500.0,0.00014694,2]
[399233611,1766193038870,-500.0,0.00014694,2]
[399233612,1766193038879,-500.0,0.00014694,2]
[399233614,1766193038889,-500.0,0.00014694,2]
[399233616,1766193038898,-250.0,0.00014694,2]
[399233618,1766193038908,-500.0,0.00014694,2]
[399233620,1766193038918,-500.0,0.00014694,2]
[399233623,1766193038927,-500.0,0.00014694,2]
[399233625,1766193038937,-500.0,0.00014694,2]
[399233626,1766193038946,-500.0,0.00014694,2]
[399233628,1766193038955,-500.0,0.00014694,2]
[399233630,1766193038964,-500.0,0.00014694,2]
[399233632,1766193038975,-500.0,0.00014694,2]
[399233634,1766193038985,-184.32289621,0.00014694,2]
[399233637,1766193038997,-93.03710379,0.00014694,2]
[399233639,1766193039006,-3686.79467003,0.00014695,2]
[399233641,1766193039018,-5500.50236508,0.00014695,2]
[399233643,1766193039031,-23675.2439331,0.00014695,2]
[399233647,1766193039056,-8783.04523491,0.00014695,2]
[399233649,1766193039070,-5247.88089528,0.00014695,2]
[399233652,1766193039084,-26279.08014647,0.00014695,2]
[399233654,1766193039095,-370.780377,0.00014695,2]
[399233656,1766193039107,-322.24925186,0.00014695,2]
[399233658,1766193039120,-3393.27706792,0.00014695,2]
[399233782,1766193040491,-3e-08,0.00014695,2]
[399233784,1766193040502,-467.93,0.00014695,2]
[399233787,1766193040512,-1306.50365617,0.00014695,2]
[399234061,1766193043217,-334.128878,0.00013699,2]
[399234062,1766193043227,-4705.02259387,0.00014695,2]
[399234063,1766193043238,-30513.75696128,0.00014695,2]
[399234068,1766193043275,-950.0,0.00014695,2]
[399234084,1766193046370,-335456.32702483,0.00014695,2]
[399234085,1766193046385,-678.01350082,0.00014695,2]
[399234086,1766193046581,-9239.59067387,0.00014695,2]
[399234089,1766193322977,-500.0,0.00013699,2]
[399234090,1766193322999,-268.25528473,0.00013699,2]
[399234091,1766193325427,-167.85663197,0.00013699,2]
[399234092,1766193328082,-63.8880833,0.00013699,2]
[399234093,1766193328193,-155.58240533,0.00013699,2]
[399234094,1766193329779,-344.41759467,0.00013699,2]
[399234095,1766193329801,-441.95257484,0.00013699,2]
[399234096,1766193332029,-58.04742516,0.00013699,2]
[399234097,1766193332051,-313.32306347,0.00013699,2]
[399234131,1766193456956,-177.68532822,0.00013699,2]
[399234132,1766193460275,-322.31467178,0.00013699,2]
[399234133,1766193460296,-100.07268393,0.00013699,2]
[399234134,1766193461936,-399.92731607,0.00013699,2]
[399234135,1766193461956,-100.07268393,0.00013699,2]
[399234136,1766193463501,-138.16913106,0.00013699,2]
[399234137,1766193463523,-13.73086894,0.00013699,2]
[399234138,1766193465699,-151.34372274,0.00013699,2]
[399234139,1766193467917,-334.92540832,0.00013699,2]
[399234140,1766193467937,-128.03619923,0.00013699,2]
[399234141,1766193471234,-292.63422556,0.00013699,2]
[399234142,1766193475041,2178.53768611,0.00013699,2]
[399234143,1766193475178,-79.32957521,0.00013699,2]
[399234144,1766193475202,-170.67042479,0.00013835,2]
[399234145,1766193483771,500.0,0.00013273,2]
[399234146,1766193487864,-180.3732098,0.00013699,2]
[399234147,1766193490076,-261.6267902,0.00013699,2]
[399234148,1766193490098,-42.73127284,0.00013835,2]
[399234149,1766193497895,734.73127284,0.00013699,2]
[399234150,1766193562014,-226.87085361,0.00013699,2]
[399234151,1766193564912,-273.12914639,0.00013699,2]
[399234152,1766193564936,-119.74360007,0.00013699,2]
[399234153,1766193587831,619.74360007,0.00013699,2]
[399234154,1766193603789,94.10359884,0.00013273,2]
[399234155,1766193603811,405.89640116,0.00013273,2]
[399234156,1766193666759,500.0,0.00013273,2]
[399234263,1766193953586,3188.8306331,0.00013276,2]
[399234264,1766193966295,500.0,0.00013273,2]
[399234274,1766194027056,258.69760923,0.00013273,2]
[399234362,1766194205253,150.0,8.143e-05,2]
[399234363,1766194207092,180.14635286,0.00013699,2]
[399234732,1766194240661,-3e-08,0.00013699,2]
[399234734,1766194240672,-1054.25487797,0.00013699,2]
[399234736,1766194240681,-158.11043201,0.00013699,2]
[399234738,1766194240691,-504.01562747,0.00013699,2]
[399234740,1766194240700,-359.16558966,0.00013699,2]
[399234742,1766194240709,-500.0,0.00013699,2]
[399234744,1766194240718,-500.0,0.00013699,2]
[399234746,1766194240728,-608.59028693,0.00013699,2]
[399234748,1766194240737,-482.3754687,0.00013699,2]
[399234750,1766194240746,-500.0,0.00013699,2]
[399234752,1766194240755,-436.73985652,0.00013699,2]
[399234754,1766194240764,-400.0,0.00013699,2]
[399234756,1766194240773,-217.60142845,0.00013699,2]
[399234758,1766194240782,-214.22189008,0.00013699,2]
[399234760,1766194240791,-503.47884053,0.00013959,2]
[399234762,1766194240800,-300.0,0.00013972,2]
[399234764,1766194240809,-300.0,0.00013972,2]
[399234766,1766194240818,-300.0,0.00013972,2]
[399234768,1766194240827,-300.0,0.00013972,2]
[399234770,1766194240836,-300.0,0.00013972,2]
[399234772,1766194240845,-300.0,0.00013972,2]
[399234774,1766194240855,-300.0,0.00013972,2]
[399234776,1766194240863,-300.0,0.00013972,2]
[399234778,1766194240872,-300.0,0.00013972,2]
[399234780,1766194240882,-300.0,0.00013972,2]
[399234782,1766194240890,-300.0,0.00013972,2]
[399234784,1766194240899,-300.0,0.00013972,2]
[399234786,1766194240908,-300.0,0.00013972,2]
[399234788,1766194240917,-300.0,0.00013972,2]
[399234790,1766194240926,-300.0,0.00013972,2]
[399234792,1766194240935,-2474.50892089,0.00014271,2]
[399234794,1766194240944,-500.0,0.00014592,2]
[399234796,1766194240955,-500.0,0.00014592,2]
[399234798,1766194240964,-500.0,0.00014592,2]
[399234800,1766194240974,-500.0,0.00014592,2]
[399234802,1766194240983,-500.0,0.00014592,2]
[399234804,1766194240992,-500.0,0.00014592,2]
[399234806,1766194241000,-331.51382777,0.00014592,2]
[399234808,1766194241009,-500.0,0.00014592,2]
[399234810,1766194241018,-500.0,0.00014592,2]
[399234812,1766194241027,-500.0,0.00014592,2]
[399234814,1766194241036,-500.0,0.00014592,2]
[399234816,1766194241045,-500.0,0.00014592,2]
[399234818,1766194241054,-500.0,0.00014592,2]
[399234820,1766194241063,-500.0,0.00014592,2]
[399234822,1766194241072,-500.0,0.00014592,2]
[399234824,1766194241080,-500.0,0.00014592,2]
[399234826,1766194241089,-184006.77054305,0.00014593,2]
[399234828,1766194241098,-160.0,0.0001465,2]
[399234830,1766194241107,-206.8282159,0.00014692,2]
[399234832,1766194241116,-17895.9090104,0.00014693,2]
[399234834,1766194241125,-1000.0,0.00014695,2]
[399234835,1766194241134,-1000.0,0.00014695,2]
[399234837,1766194241143,-1000.0,0.00014695,2]
[399234839,1766194241152,-372.48504562,0.00014695,2]
[399234841,1766194241162,-574.12855637,0.00014726,2]
[399234843,1766194241171,-250.0,0.00014726,2]
[399234845,1766194241180,-252.84296255,0.00014726,2]
[399234847,1766194241189,-600.0,0.00014987,2]
[399234849,1766194241198,-175.0,0.00015,2]
[399234851,1766194241207,-260.0,0.00015198,2]
[399234853,1766194241216,-692.23862015,0.00015274,2]
[399234855,1766194241226,-198.89653965,0.000153,2]
[399234857,1766194241235,-321.61457778,0.000153,2]
[399234859,1766194241244,-160.80728886,0.000153,2]
[399234861,1766194241255,-252.78183029,0.00015699,2]
[399234863,1766194241264,-360.0,0.00015746,2]
[399234865,1766194241273,-250.0,0.00016123,2]
[399234867,1766194241282,-17895.9090104,0.00016214,2]
[399234869,1766194241291,-321.61457778,0.00016269,4]
[399234871,1766194241300,-460.0,0.00016294,2]
[399234873,1766194241309,-168.0,0.000163,2]
[399234875,1766194241319,-168.0,0.000163,2]
[399234877,1766194241327,-206.8282159,0.00016316,2]
[399234879,1766194241336,-500.0,0.00016438,2]
[399234881,1766194241346,-500.0,0.00016438,2]
[399234883,1766194241355,-375.13,0.00016438,2]
[399234885,1766194241364,-720.0,0.00016486,2]
[399234887,1766194241374,-150.669,0.0001652,2]
[399234890,1766194241386,-151.453,0.00016784,2]
[399234891,1766194241395,-560.0,0.00016842,2]
[399234893,1766194241404,-168.0,0.000169,2]
[399234895,1766194241413,-168.0,0.000169,2]
[399234897,1766194241422,-160.0,0.00017133,3]
[399234899,1766194241431,-198.89653965,0.00017237,6]
[399234901,1766194241439,-321.61457778,0.00017237,6]
[399234903,1766194241448,-797.56650014,0.00017241,2]
[399234906,1766194241461,-554.89025333,0.00017241,2]
[399235125,1766194246597,-1375.13,0.00014364,2]
[399235126,1766194246608,-1048.60356368,0.00014364,2]
[399235127,1766194246618,-2114.73098095,0.0001455,2]
[399235128,1766194246627,-637.609,0.00016356,2]
[399235129,1766194246636,-13607.21129905,0.00017241,2]
[399235140,1766194327569,324.0,0.00013699,2]
[399235141,1766194443762,500.0,0.00013273,2]
[399235151,1766195403187,500.0,0.00013273,2]
[399235231,1766195432657,-1020.73647482,0.00014426,2]
[399235259,1766195438394,-409.74887016,0.00014426,2]
[399235266,1766195438447,-732.01513893,0.00014426,2]
[399235268,1766195438457,-627.0,0.00014426,2]
[399235270,1766195438467,-218.48449805,0.00014454,2]
[399235272,1766195438476,-300.0,0.00014491,2]
[399235274,1766195438485,-2779.0,0.00014492,2]
[399235276,1766195438495,-156.95136056,0.00014782,2]
[399235279,1766195438517,-143.04863944,0.00014782,2]
[399235281,1766195438526,-300.0,0.00014782,2]
[399235283,1766195438536,-300.0,0.00014782,2]
[399235285,1766195438545,-300.0,0.00014782,2]
[399235287,1766195438555,-300.0,0.00014782,2]
[399235288,1766195438564,-300.0,0.00014782,2]
[399235290,1766195438574,-300.0,0.00014782,2]
[399235292,1766195438583,-300.0,0.00014782,2]
[399235294,1766195438593,-300.0,0.00014782,2]
[399235296,1766195438602,-300.0,0.00014782,2]
[399235298,1766195438610,-300.0,0.00014782,2]
[399235300,1766195438620,-300.0,0.00014782,2]
[399235302,1766195438629,-300.0,0.00014782,2]
[399235305,1766195438639,-300.0,0.00014782,2]
[399235306,1766195438648,-300.0,0.00014782,2]
[399235308,1766195438658,-600.0,0.00014782,2]
[399235311,1766195438670,-6589.6045684,0.00014924,2]
[399235312,1766195438679,-185.770647,0.00015068,2]
[399235315,1766195438689,-707.12373545,0.00015073,2]
[399235316,1766195438699,-333.33333333,0.000153,2]
[399235318,1766195438708,-251.0,0.00015484,2]
[399235320,1766195438717,-160.35970921,0.00015524,2]
[399235322,1766195438727,-251.0,0.00015566,2]
[399235324,1766195438736,-251.0,0.00015567,2]
[399235326,1766195438745,-251.0,0.00015683,2]
[399235328,1766195438755,-251.0,0.00015739,2]
[399235330,1766195438764,-251.0,0.00015826,2]
[399235332,1766195438773,-251.0,0.00015826,2]
[399235333,1766195438791,-368.19111444,0.00015867,2]
[399235334,1766195438802,-320.0,0.00015868,2]
[399235335,1766195438812,-251.0,0.0001591,2]
[399235336,1766195438821,-251.0,0.00015932,2]
[399235337,1766195438832,-251.0,0.00016003,2]
[399235338,1766195438842,-251.0,0.00016007,2]
[399235339,1766195438851,-251.0,0.00016079,2]
[399235340,1766195438861,-333.60760283,0.00016112,2]
[399235341,1766195438872,-411.48862148,0.00016112,2]
[399235342,1766195438881,-740.67951866,0.00016112,2]
[399235343,1766195438890,-251.0,0.00016153,2]
[399235344,1766195438899,-720.0,0.0001626,2]
[399235345,1766195438908,-251.0,0.00016276,2]
[399235346,1766195438918,-333.33333333,0.00016301,4]
[399235347,1766195438928,-500.0,0.00016438,2]
[399235348,1766195438938,-500.0,0.00016438,2]
[399235349,1766195438947,-500.0,0.00016438,2]
[399235350,1766195438956,-500.0,0.00016438,2]
[399235351,1766195438966,-500.0,0.00016438,2]
[399235352,1766195438975,-500.0,0.00016438,2]
[399235353,1766195438985,-500.0,0.00016438,2]
[399235354,1766195438994,-500.0,0.00016438,2]
[399235355,1766195439004,-500.0,0.00016438,2]
[399235356,1766195439013,-500.0,0.00016438,2]
[399235357,1766195439022,-500.0,0.00016438,2]
[399235358,1766195439031,-500.0,0.00016438,2]
[399235359,1766195439040,-500.0,0.00016438,2]
[399235360,1766195439050,-500.0,0.00016438,2]
[399235361,1766195439059,-500.0,0.00016438,2]
[399235362,1766195439068,-500.0,0.00016438,2]
[399235363,1766195439079,-500.0,0.00016438,2]
[399235364,1766195439088,-500.0,0.00016438,2]
[399235365,1766195439097,-500.0,0.00016438,2]
[399235366,1766195439106,-218.7898721,0.00016438,2]
[399235367,1766195439115,-257.8117077,0.00016454,2]
[399235369,1766195439127,-251.0,0.00016553,2]
[399235371,1766195439137,-251.0,0.00016567,2]
[399235373,1766195439147,-156.83482128,0.00016628,7]
[399235375,1766195439156,-541.65457506,0.00016655,7]
[399235377,1766195439166,-181.38036542,0.00016665,2]
[399235379,1766195439175,-300.29697996,0.00016702,2]
[399235381,1766195439185,-1199.98673191,0.00016702,2]
[399235383,1766195439194,-632.0,0.0001671,2]
[399235385,1766195439203,-1362.0,0.0001671,2]
[399235387,1766195439212,-2169.099,0.0001671,2]
[399235389,1766195439222,-251.0,0.00016736,2]
[399235391,1766195439231,-251.0,0.00016781,2]
[399235406,1766195439364,-2475.28583286,0.00016789,2]
[399235408,1766195439374,-251.0,0.00016791,2]
[399235410,1766195439384,-251.0,0.00016817,2]
[399235412,1766195439394,-251.0,0.00016824,2]
[399235414,1766195439403,-251.0,0.0001693,2]
[399235416,1766195439413,-251.0,0.00016934,2]
[399235418,1766195439422,-251.0,0.00016998,2]
[399235420,1766195439432,-251.0,0.00017001,2]
[399235422,1766195439441,-160.0,0.00017133,3]
[399235424,1766195439451,-36086.987822,0.00017241,2]
[399235426,1766195439460,-161.0,0.00017241,2]
[399235428,1766195439469,-160.0,0.00017433,2]
[399235430,1766195439480,-181.38036542,0.00017456,2]
[399235432,1766195439489,-718.42464949,0.00017616,2]
[399235434,1766195439499,-160.0,0.00017617,4]
[399235436,1766195439508,-864.0,0.00017886,2]
[399235438,1766195439517,-160.0,0.00017939,2]
[399235440,1766195439526,-260.0,0.00017981,2]
[399235442,1766195439535,-318.72564299,0.00017999,2]
[399235444,1766195439544,-500.0,0.00017999,2]
[399235446,1766195439553,-500.0,0.00017999,2]
[399235448,1766195439563,-500.0,0.00017999,2]
[399235450,1766195439571,-500.0,0.00017999,2]
[399235452,1766195439582,-500.0,0.00017999,2]
[399235454,1766195439591,-500.0,0.00017999,2]
[399235456,1766195439603,-500.0,0.00017999,2]
[399235458,1766195439613,-490.15700409,0.00017999,2]
[399235460,1766195439622,-500.0,0.00017999,2]
[399235462,1766195439632,-500.0,0.00017999,2]
[399235464,1766195439642,-2139.02436036,0.00018,5]
[399235466,1766195439651,-160.0,0.00018102,5]
[399235468,1766195439660,-321.61457778,0.00018206,8]
[399235470,1766195439669,-181.56174578,0.00018248,2]
[399235472,1766195439679,-1470.3395226,0.00018264,2]
[399235474,1766195439687,-297.13891735,0.00018454,2]
[399235476,1766195439696,-360.0,0.00018529,2]
[399235478,1766195439706,-160.0,0.00018586,6]
[399235480,1766195439714,-302.60665372,0.000189,2]
[399235482,1766195439724,-328.0770931,0.00019009,2]
[399235484,1766195439733,-160.0,0.00019071,7]
[399235486,1766195439742,-162.60442585,0.00019071,5]
[399235488,1766195439750,-460.0,0.00019077,2]
[399235490,1766195439759,-302.60665372,0.00019089,2]
[399235492,1766195439768,-198.89653965,0.00019174,10]
[399235494,1766195439778,-321.61457778,0.00019174,10]
[399235496,1766195439789,-3540.9,0.000192,2]
[399235498,1766195439798,-302.60665372,0.00019278,2]
[399235500,1766195439806,-303.90937259,0.00019444,5]
[399235502,1766195439815,-302.60665372,0.00019467,2]
[399235504,1766195439824,-150.0,0.0001952,2]
[399235506,1766195439833,-150.0,0.0001952,2]
[399235508,1766195439842,-560.0,0.00019625,2]
[399235510,1766195439851,-302.60665372,0.00019656,2]
[399235512,1766195439860,-1000.0,0.00019674,2]
[399235514,1766195439870,-632.0,0.0001971,2]
[399235516,1766195439879,-1362.0,0.0001971,2]
[399235518,1766195439888,-2159.0,0.0001971,2]
[399235520,1766195439897,-150.0,0.00019784,2]
[399235522,1766195439906,-346.19607093,0.00019845,4]
[399235524,1766195439915,-10830.0,0.0002,2]
[399235526,1766195439924,-1106.0,0.0002,2]
[399235528,1766195439933,-151.4030169,0.0002,2]
[399235530,1766195439945,-150.0,0.0002,10]
[399235532,1766195439955,-167.0,0.00020026,120]
[399235535,1766195439964,-321.61457778,0.00020143,12]
[399235536,1766195439975,-270.3226501,0.00020173,2]
[399235539,1766195439984,-1054.254878,0.00020187,2]
[399235541,1766195439994,-336.466127,0.00020454,2]
[399235542,1766195440003,-334.128878,0.00020548,2]
[399235544,1766195440012,-150.0,0.00021,2]
[399235546,1766195440021,-170.50885064,0.00021,3]
[399235548,1766195440031,-198.89653965,0.00021111,14]
[399235551,1766195440042,-321.61457778,0.00021111,14]
[399235553,1766195440052,-167.0,0.00021138,120]
[399235555,1766195440063,-642.56781529,0.00021637,2]
[399235563,1766195440142,-621.4604462,0.00021637,2]
[399235622,1766195440691,-898.47222236,0.00021637,2]
[399235624,1766195440701,-1000.0,0.00021642,10]
[399235626,1766195440710,-244.0,0.00021642,10]
[399235628,1766195440719,-150.0,0.00021918,2]
[399235630,1766195440728,-3540.9,0.00022,2]
[399235632,1766195440738,-321.61457778,0.0002208,16]
[399235634,1766195440747,-169.0,0.00022137,6]
[399235636,1766195440756,-375.79333665,0.00022454,2]
[399235638,1766195440765,-300.0,0.00022466,2]
[399235640,1766195440774,-238.0,0.00022685,8]
[399235642,1766195440783,-632.0,0.0002271,2]
[399235644,1766195440792,-1362.0,0.0002271,2]
[399235646,1766195440801,-2159.0,0.0002271,2]
[399235648,1766195440811,-450.0,0.00023014,2]
[399235650,1766195440819,-198.89653965,0.00023049,18]
[399235652,1766195440828,-321.61457778,0.00023049,18]
[399235654,1766195440837,-600.0,0.00023562,2]
[399235656,1766195440846,-240.0,0.00023781,11]
[399235658,1766195440856,-1000.0,0.00023806,10]
[399235660,1766195440865,-492.0,0.00023806,10]
[399235662,1766195440874,-153.38953503,0.000239,3]
[399235664,1766195440883,-1041.66666667,0.00023965,2]
[399235666,1766195440892,-160.0,0.00023981,2]
[399235668,1766195440902,-953.0,0.00024,2]
[399235670,1766195440911,-321.61457778,0.00024017,20]
[399235672,1766195440920,-423.20361963,0.0002411,2]
[399235674,1766195440930,-238839.6131102,0.00024142,2]
[399235676,1766195440940,-121467.3404526,0.00024142,2]
[399235678,1766195440948,-151.0,0.00024142,2]
[399235680,1766195440957,-151.0,0.00024142,2]
[399235682,1766195440966,-151.0,0.00024142,2]
[399235684,1766195440976,-151.0,0.00024142,2]
[399235686,1766195440985,-144351.28,0.000242,2]
[399235688,1766195440994,-161.69,0.000242,7]
[399235690,1766195441003,-659.33,0.000242,14]
[399235692,1766195441013,-151.0,0.000242,2]
[399235694,1766195441022,-151.0,0.000242,2]
[399235696,1766195441031,-151.0,0.000242,2]
[399235698,1766195441040,-172.510965,0.000242,2]
[399235700,1766195441050,-415.1205463,0.00024454,2]
[399235702,1766195441059,-100807.81497942,0.0002465,2]
[399236259,1766195446930,-215.48207245,0.00024042,2]
[399236261,1766195446939,-13722.81905155,0.0002465,2]
[399236681,1766196314894,150.0,0.00010628,2]
[399236682,1766196315289,172.38,0.00011134,2]
[399236683,1766196315710,258.58,0.0001164,2]
[399236684,1766196316155,344.77,0.00012146,2]
[399236685,1766196316540,430.96,0.00012652,2]
[399236686,1766196316963,517.15,0.00013158,2]
[399236687,1766196317878,603.34,0.00013664,2]
[399236688,1766196354797,196.5072669,0.00013571,2]
[399236689,1766196363467,500.0,0.00013273,2]
[399236690,1766196390215,150.0,0.00012031,2]
[399236691,1766196390616,152.27,0.00012604,2]
[399236692,1766196391018,228.41,0.00013177,2]
[399236693,1766196465040,150.0,0.00013071,2]
[399236694,1766196465546,150.0,0.00013693,2]
[399236695,1766196485118,192.83,0.0001,2]
[399236696,1766196487540,192.83,0.000102,2]
[399236697,1766196490579,192.83,0.000104,2]
[399236699,1766196495084,251.81166814,0.00013273,2]
[399236702,1766196505096,291.28168471,0.00013273,2]
[399236704,1766196543136,150.0,0.00012656,2]
[399236705,1766196543549,150.0,0.00013258,2]
[399236707,1766196609821,500.2075358,0.00013273,2]
[399236708,1766196621830,150.0,0.00010547,2]
[399236709,1766196622202,150.0,0.00011049,2]
[399236710,1766196622602,185.23,0.00011551,2]
[399236711,1766196623111,246.98,0.00012054,2]
[399236712,1766196623401,308.72,0.00012556,2]
[399236713,1766196623791,370.47,0.00013058,2]
[399236714,1766196624121,507.1585466,0.00013273,2]
[399236715,1766196624186,432.21,0.0001356,2]
[399236734,1766196632597,-500.39561144,0.00013699,2]
[399236735,1766196632606,-500.71514563,0.00013699,2]
[399236736,1766196632615,-510.86609876,0.00013699,2]
[399236737,1766196632624,-615.0,0.00013699,2]
[399236738,1766196632633,-187.00819539,0.0001378,2]
[399236739,1766196632642,-493.96,0.00014062,2]
[399236740,1766196632651,-555.7,0.00014565,2]
[399236741,1766196632661,-300.0,0.00014679,2]
[399236742,1766196632670,-300.0,0.0001468,2]
[399236743,1766196632679,-95.14348428,0.0001468,2]
[399236768,1766196638644,-204.85651572,0.0001468,2]
[399236770,1766196638654,-300.0,0.0001468,2]
[399236772,1766196638663,-300.0,0.0001468,2]
[399236774,1766196638672,-300.0,0.0001468,2]
[399236775,1766196638680,-300.0,0.0001468,2]
[399236776,1766196638689,-300.0,0.0001468,2]
[399236777,1766196638698,-300.0,0.0001468,2]